{"text_format":"3","workbook":"xlsx","n_sheets":7,"sheets":["Deliverables Summary","Team Roster","Deliverable 1 (ПРИКЛАД)","Deliverable 1","Deliverable 2","Deliverable 3","Deliverable 4"],"read":"whole","date_system":"1900"}

{"sheet":"Deliverables Summary","index":0,"n_rows":27,"n_cols":3,"rows_kept":27,"merged":[[0,0,0,1],[0,2,0,7],[1,0,1,1],[1,2,1,7],[2,0,2,1],[2,2,2,7],[3,0,3,7],[4,0,4,7],[5,0,6,7],[7,0,7,1],[7,2,7,7],[8,0,8,1],[8,2,8,7],[9,0,9,7],[10,0,10,7],[11,0,12,7],[13,0,13,1],[13,2,13,7],[14,0,14,1],[14,2,14,7],[16,0,16,7],[17,0,18,7],[19,0,19,1],[19,2,19,7],[20,0,20,1],[20,2,20,7],[22,0,22,7],[23,0,24,7],[25,0,25,1],[25,2,25,7],[26,0,26,1],[26,2,26,7]]}
["Назва организації/Organisation name:",null,"НАЗВА/NAME"]
["Загальний бюджет проекту:",null,{"$f":"A9+A15+A21+A27","v":0}]
["Загальні терміни проекту:",null,{"$f":"C9+C15+C21+C27","v":0}]
["Деталі/Details:"]
["Результат №1/Deliverable #1"]
["Проведена перша стадія проекту - Фаза Дослідження (Discovery Phase) - та артефакти, що засвідчують її успішне завершення/Completion of the first project stage — Discovery Phase — and delivery of the artifacts confirming its successful completion. "]
[]
["Бюджет/Budget",null," Строк надання послуг (календарних днів)/Terms of providing services (calendar days) /"]
[{"$f":"'Deliverable 1'!B4","v":0},null,{"$f":"'Deliverable 1'!B3","v":0}]
[]
["Результат №1/Deliverable #2"]
["Погоджений ФПСУ 2 та рецепіентами працюючий прототип системи пошуку, що буде виконувати базові пошукові функції з відкритих джерел та зберігати результати у базу даних/An agreed working prototype of the search system (approved by PFRU and the recipients), capable of performing basic search functions from open sources and storing the results in a database. "]
[]
["Бюджет/Budget",null," Строк надання послуг (календарних днів)/Terms of providing services (calendar days) /"]
[{"$f":"'Deliverable 2'!B4","v":0},null,{"$f":"'Deliverable 2'!B3","v":0}]
[]
["Результат №1/Deliverable #3"]
["Погоджена ФПСУ 2 та рецепіентами система пошуку з розширеними можливостями запитів, доступом до нових типів даних та базовими механізмами безпеки/An agreed search system (approved by PFRU and the recipients), with extended query capabilities, access to new data types, and basic security mechanisms. "]
[]
["Бюджет/Budget",null," Строк надання послуг (календарних днів)/Terms of providing services (calendar days) /"]
[{"$f":"'Deliverable 3'!B4","v":0},null,{"$f":"'Deliverable 3'!B3","v":0}]
[]
["Результат №1/Deliverable #4"]
["Погоджена ФПСУ 2 та рецепіентами система пошуку, готова до експлуатації з повним функціоналом та узгодженими робочими процесами/An agreed search system (approved by PFRU and the recipients), ready for operation with full functionality and aligned workflows. "]
[]
["Бюджет/Budget",null," Строк надання послуг (календарних днів)/Terms of providing services (calendar days) /"]
[{"$f":"'Deliverable 4'!B4","v":0},null,{"$f":"'Deliverable 4'!B3","v":0}]

{"sheet":"Team Roster","index":1,"n_rows":10,"n_cols":7,"rows_kept":10,"merged":[[0,0,1,0],[0,1,0,6],[9,0,9,5]]}
["№/#","Загальна інформація/General data"]
[null,"ПІБ/Name","Робоча спеціалізація/ Job Specialization","Посилання на резюме/Resume link","Компенсація на день/Daily rate","Залучення, дні/Engagement,days","Бюджет/Budget"]
[1,"Тест Тестович Тестов 1",null,"посилання/link",null,null,{"$f":"E3*F3","v":0}]
[2,"Тест Тестович Тестов 2",null,"посилання/link",null,null,{"$f":"E4*F4","v":0}]
[3,"Тест Тестович Тестов 3",null,"посилання/link",null,null,0]
[4,"Тест Тестович Тестов 4",null,"посилання/link",null,null,0]
[5,"Тест Тестович Тестов 5",null,"посилання/link",null,null,0]
[6,"Тест Тестович Тестов 6",null,"посилання/link",null,null,0]
[7,"Тест Тестович Тестов 7",null,"посилання/link",null,null,0]
["СУМА/TOTAL:",{"$nulls":5},{"$f":"SUM(G3:G9)","v":0}]

{"sheet":"Deliverable 1 (ПРИКЛАД)","index":2,"n_rows":40,"n_cols":27,"rows_kept":40,"merged":[[0,0,0,3],[0,4,4,4],[0,5,4,41],[1,1,1,3],[2,1,2,3],[3,1,3,3],[4,1,4,3],[5,0,5,3],[5,4,5,22],[5,23,14,41],[6,4,6,12],[6,13,6,18],[6,19,6,22],[7,4,7,12],[7,13,7,18],[7,19,7,22],[8,4,8,12],[8,13,8,18],[8,19,8,22],[9,4,9,12],[9,13,9,18],[9,19,9,22],[10,4,10,12],[10,13,10,18],[10,19,10,22],[11,4,11,12],[11,13,11,18],[11,19,11,22],[12,4,12,12],[12,13,12,18],[12,19,12,22],[13,0,13,1],[13,4,13,12],[13,13,13,18],[13,19,13,22],[14,0,14,4],[14,5,14,22],[15,0,15,4],[15,5,15,32],[15,33,99,41],[16,5,16,11],[16,12,16,16],[16,19,16,24],[16,26,16,31],[17,0,24,0],[25,0,25,2],[26,0,31,0],[26,1,26,4],[32,0,32,2],[33,0,38,0],[33,1,33,4],[39,0,39,2],[40,5,99,32]]}
["Загальна інформація вендора/Vendor's general info"]
["Назва організації/Organization name:","НАЗВА/NAME"]
["Тривалість, днів/Duration, days",{"$f":"SUM(D26+D33+D40)/8","v":28}]
["Бюджет Результату №1/Budget Deliverable #1",{"$f":"D14","v":165600}]
["Вартість роботи на день, грн/Cost per day,hrn",{"$f":"B4/B3","v":{"v":5914.285714285715,"d":"5914.3"}}]
["Розрахунок вартості Результату 1 в цілому/General deliverable 1 cost calculation ",{"$nulls":3},"Розрахунок вартості Результату 1 по типам робіт/General deliverable 1 cost per work type "]
["Склад команди/Team Roster","Годинна ставка, грн/Hourly Rate, hrn","Сумарна оцінка трудовитрат, години/\nLoE summary, hrs","Сумарна оцінка трудовитрат, гривні/\nLoE summary, hrn","Тип роботи/Work type",{"$nulls":8},"Загальна кількість годин/Overall hours spent",{"$nulls":5},"Загальна Вартість/Overall Cost"]
["Архітектор Системи/System Architect",1400,{"$f":"D19+D25+D30","v":20},{"$f":"E19+E25+E30","v":28000},"Загальний звіт про результати фази дослідження",{"$nulls":8},{"$f":"D26","v":72},{"$nulls":5},{"$f":"E26","v":80800}]
["Технічний інженер 1/Tech.Engineer 1",1000,{"$f":"D22+D28","v":18},{"$f":"E22+E28","v":18000},"Специфікація вимог у ексель форматі",{"$nulls":8},{"$f":"D33","v":76},{"$nulls":5},{"$f":"E33","v":84800}]
["Технічний інженер 2/Tech.Engineer 2",1000,{"$f":"D23+D29","v":22},{"$f":"E23+E29","v":22000},"Тип робіт 3",{"$nulls":8},"за аналогією",{"$nulls":5},"за аналогією"]
["Менеджер проекту/Project manager",1200,{"$f":"D24+D32","v":32},{"$f":"E24+E32","v":38400},"Тип робіт 4",{"$nulls":8},"за аналогією",{"$nulls":5},"за аналогією"]
["Тестувальник/QA Engineer",800,{"$f":"D20","v":8},{"$f":"E20","v":6400},"Тип робіт 5",{"$nulls":8},"за аналогією",{"$nulls":5},"за аналогією"]
["Бізнес аналітик/BA",1100,{"$f":"D21+D31","v":48},{"$f":"E21+E31","v":52800},"Тип робіт 6",{"$nulls":8},"за аналогією",{"$nulls":5},"за аналогією"]
["СУМА/TOTAL:",null,{"$f":"SUM(C8:C13)","v":148},{"$f":"SUM(D8:D13)","v":165600},"СУМА/TOTAL:",{"$nulls":8},{"$f":"SUM(N8:N13)","v":148},{"$nulls":5},{"$f":"SUM(T8:T13)","v":165600}]
[]
["Визначення обсягу робіт для Результату №1/Deliverable 1 Scoping",{"$nulls":4},"Діаграма Ґанта для визначення строків виконання кінцевих результатів/Deliverable timeline Gant chart"]
["Робоче завдання Результату№1 з ToR/Deliverable 1 work item from ToR","Запропоновані роботи вендора, базуючисть на запиті ToR/Vendor's proposal work based on ToR request","Відповідальний за виконання/ Accountable for delivery","Оцінка трудовитрат в годинах/LoE in hrs","Оцінка трудовитрат в грн/LoE in hrn","Week 1",{"$nulls":6},"Week 2",{"$nulls":6},"Week 3",{"$nulls":6},"Week 4"]
["Загальний звіт про результати фази дослідження/General report on the results of the Discovery Phase"]
[null,"Проведення дослідження та надання матеріалів для звіту","Архітектор Системи",8,{"$f":"D19*B8","v":11200}]
[null,"Проведення дослідження та надання матеріалів для звіту","Тестувальник",8,{"$f":"D20*B12","v":6400}]
[null,"Проведення дослідження та надання матеріалів для звіту","Бізнес аналітик",24,{"$f":"D21*B13","v":26400}]
[null,"Проведення дослідження та надання матеріалів для звіту","Технічний інженер 1",6,{"$f":"D22*B9","v":6000}]
[null,"Проведення дослідження та надання матеріалів для звіту","Технічний інженер 2",6,{"$f":"D23*B10","v":6000}]
[null,"Координація роботи та складання звіту","Менеджер проекту",16,{"$f":"D24*B11","v":19200}]
[null,"Верифікація звіту та внесення правок","Архітектор Системи",4,{"$f":"D25*B8","v":5600}]
["СУМА/TOTAL:",null,null,{"$f":"SUM(D19:D25)","v":72},{"$f":"SUM(E19:E25)","v":80800}]
["Specification of requirements in Excel format/Специфікація вимог у ексель форматі"]
[null,"Тип робіт 1","Технічний інженер 1",12,{"$f":"D28*B9","v":12000}]
[null,"Тип робіт 2","Технічний інженер 2",16,{"$f":"D29*B10","v":16000}]
[null,"Тип робіт 3","Архітектор Системи",8,{"$f":"D30*B8","v":11200}]
[null,"Тип робіт 4","Бізнес аналітик",24,{"$f":"D31*B13","v":26400}]
[null,"Тип робіт 5","Менеджер проекту",16,{"$f":"D32*B11","v":19200}]
["СУМА/TOTAL:",null,null,{"$f":"SUM(D28:D32)","v":76},{"$f":"SUM(E28:E32)","v":84800}]
["Deliverable 1 work type 1/Назва результата роботи 1"]
[null,"Тип робіт 1","Технічний інженер 1",12,{"$f":"D35*B9","v":12000}]
[null,"Тип робіт 2","Технічний інженер 2",16,{"$f":"D36*B10","v":16000}]
[null,"Тип робіт 3","Архітектор Системи",8,{"$f":"D37*B8","v":11200}]
[null,"Тип робіт 4","Бізнес аналітик",24,{"$f":"D38*B13","v":26400}]
[null,"Тип робіт 5","Менеджер проекту",16,{"$f":"D39*B11","v":19200}]
["СУМА/TOTAL:",null,null,{"$f":"SUM(D35:D39)","v":76},{"$f":"SUM(E35:E39)","v":84800}]

{"sheet":"Deliverable 1","index":3,"n_rows":39,"n_cols":55,"rows_kept":39,"merged":[[0,0,0,3],[0,4,4,68],[1,1,1,3],[2,1,2,3],[3,1,3,3],[4,1,4,3],[5,0,5,3],[5,4,5,22],[5,23,14,68],[6,4,6,12],[6,13,6,18],[6,19,6,22],[7,4,7,12],[7,13,7,18],[7,19,7,22],[8,4,8,12],[8,13,8,18],[8,19,8,22],[9,4,9,12],[9,13,9,18],[9,19,9,22],[10,4,10,12],[10,13,10,18],[10,19,10,22],[11,4,11,12],[11,13,11,18],[11,19,11,22],[12,4,12,12],[12,13,12,18],[12,19,12,22],[13,0,13,1],[13,4,13,12],[13,13,13,18],[13,19,13,22],[14,0,14,4],[14,5,14,22],[15,0,15,4],[15,5,15,60],[16,5,16,11],[16,12,16,16],[16,19,16,24],[16,26,16,31],[16,33,16,39],[16,40,16,45],[16,47,16,53],[16,54,16,60],[17,0,23,0],[24,0,24,2],[25,0,30,0],[25,1,25,4],[31,0,31,2],[32,0,37,0],[32,1,32,4],[38,0,38,2],[39,5,55,68]]}
["Загальна інформація "]
["Назва організації/Organization name","НАЗВА/NAME"]
["Тривалість, днів/Duration, days",{"$f":"SUM(D25+D32+D39)/8","v":0}]
["Бюджет Результату №1/Budget Deliverable #1",{"$f":"D14","v":0}]
["Вартість роботи на день, грн/Cost per day",{"$f":"B4/B3","v":{"$error":"#DIV/0!"}}]
["Розрахунок вартості Результату №2 в цілому/General deliverable #2 cost calculation ",{"$nulls":3},"Розрахунок вартості Результату №2 по типам робіт/General deliverable #2 cost per work type "]
["Склад команди/Team Roster","Годинна ставка, грн/Hourly Rate, hrn","Сумарна оцінка трудовитрат, години/\nLoE summary, hrs","Сумарна оцінка трудовитрат, гривні/\nLoE summary, hrn","Тип роботи/Work type",{"$nulls":8},"Загальна кількість годин/Overall hours spent",{"$nulls":5},"Загальна Вартість/Overall Cost"]
["Консультант 1",null,{"$f":"D19+D26+D34","v":0},{"$f":"E19+E27+E34","v":0},"Тип робіт 1",{"$nulls":8},{"$f":"D25","v":0},{"$nulls":5},{"$f":"E25","v":0}]
["Консультант 2",null,{"$f":"D20+D28+D35","v":0},{"$f":"E20+E28+E35","v":0},"Тип робіт 2",{"$nulls":8},{"$f":"D32","v":0},{"$nulls":5},{"$f":"E32","v":0}]
["Консультант 3",null,{"$f":"D21+D29+D36","v":0},{"$f":"E21+E29+E36","v":0},"Тип робіт 3",{"$nulls":8},{"$f":"D39","v":0},{"$nulls":5},{"$f":"E39","v":0}]
["Консультант 4",null,{"$f":"D22+D30+D37","v":0},{"$f":"E22+E30+E37","v":0},"Тип робіт 4",{"$nulls":8},"за аналогією",{"$nulls":5},"за аналогією"]
["Консультант 5",null,{"$f":"D23+D31+D38","v":0},{"$f":"E23+E31+E38","v":0},"Тип робіт 5",{"$nulls":8},"за аналогією",{"$nulls":5},"за аналогією"]
["Консультант 6",null,{"$f":"D24","v":0},{"$f":"E24","v":0},"Тип робіт 6",{"$nulls":8},"за аналогією",{"$nulls":5},"за аналогією"]
["СУМА/TOTAL:",null,{"$f":"SUM(C8:C13)","v":0},{"$f":"SUM(D8:D13)","v":0},"СУМА/TOTAL:",{"$nulls":8},{"$f":"SUM(N8:N13)","v":0},{"$nulls":5},{"$f":"SUM(T8:T13)","v":0}]
[]
["Визначення обсягу робіт для Результату №2/Deliverable #2 scoping",{"$nulls":4},"Діаграма Ґанта для визначення строків виконання кінцевих результатів/Deliverable timeline Gant chart"]
["Робоче завдання Результату №2 з ToR/deliverable #2 work item from ToR","Запропоновані роботи вендора, базуючисть на запиті ToR/Vendor's proposal work based on ToR request","Відповідальний за виконання/ Accountable for delivery","Оцінка трудовитрат в годинах/LoE in hrs","Оцінка трудовитрат в грн/LoE in hrn","Week 1",{"$nulls":6},"Week 2",{"$nulls":6},"Week 3",{"$nulls":6},"Week 4",{"$nulls":6},"Week 5",{"$nulls":6},"Week 6",{"$nulls":6},"Week 7",{"$nulls":6},"Week 8"]
["Типи робіт  Результату №2/Deliverable #2 work type"]
[null,"Тип робіт 1","Консультант 1",null,{"$f":"D19*B8","v":0}]
[null,"Тип робіт 2","Консультант 2",null,{"$f":"D20*B9","v":0}]
[null,"Тип робіт 3","Консультант 3",null,0]
[null,"Тип робіт 4","Консультант 4",null,0]
[null,"Тип робіт 5","Консультант 5",null,0]
[null,"Тип робіт 6","Консультант 6",null,0]
["СУМА/TOTAL:",null,null,{"$f":"SUM(D19:D24)","v":0},{"$f":"SUM(E19:E24)","v":0}]
["Типи робіт  Результату №2/Deliverable #2 work type"]
[null,"Тип робіт 1","Консультант 1",null,{"$f":"D27*B8","v":0}]
[null,"Тип робіт 2","Консультант 2",null,{"$f":"D28*B9","v":0}]
[null,"Тип робіт 3","Консультант 3",null,0]
[null,"Тип робіт 4","Консультант 4",null,0]
[null,"Тип робіт 5","Консультант 5",null,0]
["СУМА/TOTAL:",null,null,{"$f":"SUM(D27:D31)","v":0},{"$f":"SUM(E27:E31)","v":0}]
["Типи робіт  Результату №2/Deliverable #2 work type"]
[null,"Тип робіт 1","Консультант 1",null,{"$f":"D34*B8","v":0}]
[null,"Тип робіт 2","Консультант 2",null,{"$f":"D35*B9","v":0}]
[null,"Тип робіт 3","Консультант 3",null,0]
[null,"Тип робіт 4","Консультант 4",null,0]
[null,"Тип робіт 5","Консультант 5",null,0]
["СУМА/TOTAL:",null,null,{"$f":"SUM(D34:D38)","v":0},{"$f":"SUM(E34:E38)","v":0}]

{"sheet":"Deliverable 2","index":4,"n_rows":39,"n_cols":55,"rows_kept":39,"merged":[[0,0,0,3],[0,4,4,68],[1,1,1,3],[2,1,2,3],[3,1,3,3],[4,1,4,3],[5,0,5,3],[5,4,5,22],[5,23,14,68],[6,4,6,12],[6,13,6,18],[6,19,6,22],[7,4,7,12],[7,13,7,18],[7,19,7,22],[8,4,8,12],[8,13,8,18],[8,19,8,22],[9,4,9,12],[9,13,9,18],[9,19,9,22],[10,4,10,12],[10,13,10,18],[10,19,10,22],[11,4,11,12],[11,13,11,18],[11,19,11,22],[12,4,12,12],[12,13,12,18],[12,19,12,22],[13,0,13,1],[13,4,13,12],[13,13,13,18],[13,19,13,22],[14,0,14,4],[14,5,14,22],[15,0,15,4],[15,5,15,60],[16,5,16,11],[16,12,16,16],[16,19,16,24],[16,26,16,31],[16,33,16,39],[16,40,16,45],[16,47,16,53],[16,54,16,60],[17,0,23,0],[24,0,24,2],[25,0,30,0],[25,1,25,4],[31,0,31,2],[32,0,37,0],[32,1,32,4],[38,0,38,2],[39,5,55,68]]}
["Загальна інформація "]
["Назва організації/Organization name","НАЗВА/NAME"]
["Тривалість, днів/Duration, days",{"$f":"SUM(D25+D32+D39)/8","v":0}]
["Бюджет Результату №2/Budget Deliverable #2",{"$f":"D14","v":0}]
["Вартість роботи на день, грн/Cost per day",{"$f":"B4/B3","v":{"$error":"#DIV/0!"}}]
["Розрахунок вартості Результату №2 в цілому/General deliverable #2 cost calculation ",{"$nulls":3},"Розрахунок вартості Результату №2 по типам робіт/General deliverable #2 cost per work type "]
["Склад команди/Team Roster","Годинна ставка, грн/Hourly Rate, hrn","Сумарна оцінка трудовитрат, години/\nLoE summary, hrs","Сумарна оцінка трудовитрат, гривні/\nLoE summary, hrn","Тип роботи/Work type",{"$nulls":8},"Загальна кількість годин/Overall hours spent",{"$nulls":5},"Загальна Вартість/Overall Cost"]
["Консультант 1",null,{"$f":"D19+D26+D34","v":0},{"$f":"E19+E27+E34","v":0},"Тип робіт 1",{"$nulls":8},{"$f":"D25","v":0},{"$nulls":5},{"$f":"E25","v":0}]
["Консультант 2",null,{"$f":"D20+D28+D35","v":0},{"$f":"E20+E28+E35","v":0},"Тип робіт 2",{"$nulls":8},{"$f":"D32","v":0},{"$nulls":5},{"$f":"E32","v":0}]
["Консультант 3",null,{"$f":"D21+D29+D36","v":0},{"$f":"E21+E29+E36","v":0},"Тип робіт 3",{"$nulls":8},{"$f":"D39","v":0},{"$nulls":5},{"$f":"E39","v":0}]
["Консультант 4",null,{"$f":"D22+D30+D37","v":0},{"$f":"E22+E30+E37","v":0},"Тип робіт 4",{"$nulls":8},"за аналогією",{"$nulls":5},"за аналогією"]
["Консультант 5",null,{"$f":"D23+D31+D38","v":0},{"$f":"E23+E31+E38","v":0},"Тип робіт 5",{"$nulls":8},"за аналогією",{"$nulls":5},"за аналогією"]
["Консультант 6",null,{"$f":"D24","v":0},{"$f":"E24","v":0},"Тип робіт 6",{"$nulls":8},"за аналогією",{"$nulls":5},"за аналогією"]
["СУМА/TOTAL:",null,{"$f":"SUM(C8:C13)","v":0},{"$f":"SUM(D8:D13)","v":0},"СУМА/TOTAL:",{"$nulls":8},{"$f":"SUM(N8:N13)","v":0},{"$nulls":5},{"$f":"SUM(T8:T13)","v":0}]
[]
["Визначення обсягу робіт для Результату №2/Deliverable #2 scoping",{"$nulls":4},"Діаграма Ґанта для визначення строків виконання кінцевих результатів/Deliverable timeline Gant chart"]
["Робоче завдання Результату №2 з ToR/deliverable #2 work item from ToR","Запропоновані роботи вендора, базуючисть на запиті ToR/Vendor's proposal work based on ToR request","Відповідальний за виконання/ Accountable for delivery","Оцінка трудовитрат в годинах/LoE in hrs","Оцінка трудовитрат в грн/LoE in hrn","Week 1",{"$nulls":6},"Week 2",{"$nulls":6},"Week 3",{"$nulls":6},"Week 4",{"$nulls":6},"Week 5",{"$nulls":6},"Week 6",{"$nulls":6},"Week 7",{"$nulls":6},"Week 8"]
["Типи робіт  Результату №2/Deliverable #2 work type"]
[null,"Тип робіт 1","Консультант 1",null,{"$f":"D19*B8","v":0}]
[null,"Тип робіт 2","Консультант 2",null,{"$f":"D20*B9","v":0}]
[null,"Тип робіт 3","Консультант 3",null,0]
[null,"Тип робіт 4","Консультант 4",null,0]
[null,"Тип робіт 5","Консультант 5",null,0]
[null,"Тип робіт 6","Консультант 6",null,0]
["СУМА/TOTAL:",null,null,{"$f":"SUM(D19:D24)","v":0},{"$f":"SUM(E19:E24)","v":0}]
["Типи робіт  Результату №2/Deliverable #2 work type"]
[null,"Тип робіт 1","Консультант 1",null,{"$f":"D27*B8","v":0}]
[null,"Тип робіт 2","Консультант 2",null,{"$f":"D28*B9","v":0}]
[null,"Тип робіт 3","Консультант 3",null,0]
[null,"Тип робіт 4","Консультант 4",null,0]
[null,"Тип робіт 5","Консультант 5",null,0]
["СУМА/TOTAL:",null,null,{"$f":"SUM(D27:D31)","v":0},{"$f":"SUM(E27:E31)","v":0}]
["Типи робіт  Результату №2/Deliverable #2 work type"]
[null,"Тип робіт 1","Консультант 1",null,{"$f":"D34*B8","v":0}]
[null,"Тип робіт 2","Консультант 2",null,{"$f":"D35*B9","v":0}]
[null,"Тип робіт 3","Консультант 3",null,0]
[null,"Тип робіт 4","Консультант 4",null,0]
[null,"Тип робіт 5","Консультант 5",null,0]
["СУМА/TOTAL:",null,null,{"$f":"SUM(D34:D38)","v":0},{"$f":"SUM(E34:E38)","v":0}]

{"sheet":"Deliverable 3","index":5,"n_rows":39,"n_cols":55,"rows_kept":39,"merged":[[0,0,0,3],[0,4,4,68],[1,1,1,3],[2,1,2,3],[3,1,3,3],[4,1,4,3],[5,0,5,3],[5,4,5,22],[5,23,14,68],[6,4,6,12],[6,13,6,18],[6,19,6,22],[7,4,7,12],[7,13,7,18],[7,19,7,22],[8,4,8,12],[8,13,8,18],[8,19,8,22],[9,4,9,12],[9,13,9,18],[9,19,9,22],[10,4,10,12],[10,13,10,18],[10,19,10,22],[11,4,11,12],[11,13,11,18],[11,19,11,22],[12,4,12,12],[12,13,12,18],[12,19,12,22],[13,0,13,1],[13,4,13,12],[13,13,13,18],[13,19,13,22],[14,0,14,4],[14,5,14,22],[15,0,15,4],[15,5,15,60],[16,5,16,11],[16,12,16,16],[16,19,16,24],[16,26,16,31],[16,33,16,39],[16,40,16,45],[16,47,16,53],[16,54,16,60],[17,0,23,0],[24,0,24,2],[25,0,30,0],[25,1,25,4],[31,0,31,2],[32,0,37,0],[32,1,32,4],[38,0,38,2],[39,5,55,68]]}
["Загальна інформація "]
["Назва організації/Organization name","НАЗВА/NAME"]
["Тривалість, днів/Duration, days",{"$f":"SUM(D25+D32+D39)/8","v":0}]
["Бюджет Результату №3/Budget Deliverable #3",{"$f":"D14","v":0}]
["Вартість роботи на день, грн/Cost per day",{"$f":"B4/B3","v":{"$error":"#DIV/0!"}}]
["Розрахунок вартості Результату №2 в цілому/General deliverable #2 cost calculation ",{"$nulls":3},"Розрахунок вартості Результату №2 по типам робіт/General deliverable #2 cost per work type "]
["Склад команди/Team Roster","Годинна ставка, грн/Hourly Rate, hrn","Сумарна оцінка трудовитрат, години/\nLoE summary, hrs","Сумарна оцінка трудовитрат, гривні/\nLoE summary, hrn","Тип роботи/Work type",{"$nulls":8},"Загальна кількість годин/Overall hours spent",{"$nulls":5},"Загальна Вартість/Overall Cost"]
["Консультант 1",null,{"$f":"D19+D26+D34","v":0},{"$f":"E19+E27+E34","v":0},"Тип робіт 1",{"$nulls":8},{"$f":"D25","v":0},{"$nulls":5},{"$f":"E25","v":0}]
["Консультант 2",null,{"$f":"D20+D28+D35","v":0},{"$f":"E20+E28+E35","v":0},"Тип робіт 2",{"$nulls":8},{"$f":"D32","v":0},{"$nulls":5},{"$f":"E32","v":0}]
["Консультант 3",null,{"$f":"D21+D29+D36","v":0},{"$f":"E21+E29+E36","v":0},"Тип робіт 3",{"$nulls":8},{"$f":"D39","v":0},{"$nulls":5},{"$f":"E39","v":0}]
["Консультант 4",null,{"$f":"D22+D30+D37","v":0},{"$f":"E22+E30+E37","v":0},"Тип робіт 4",{"$nulls":8},"за аналогією",{"$nulls":5},"за аналогією"]
["Консультант 5",null,{"$f":"D23+D31+D38","v":0},{"$f":"E23+E31+E38","v":0},"Тип робіт 5",{"$nulls":8},"за аналогією",{"$nulls":5},"за аналогією"]
["Консультант 6",null,{"$f":"D24","v":0},{"$f":"E24","v":0},"Тип робіт 6",{"$nulls":8},"за аналогією",{"$nulls":5},"за аналогією"]
["СУМА/TOTAL:",null,{"$f":"SUM(C8:C13)","v":0},{"$f":"SUM(D8:D13)","v":0},"СУМА/TOTAL:",{"$nulls":8},{"$f":"SUM(N8:N13)","v":0},{"$nulls":5},{"$f":"SUM(T8:T13)","v":0}]
[]
["Визначення обсягу робіт для Результату №2/Deliverable #2 scoping",{"$nulls":4},"Діаграма Ґанта для визначення строків виконання кінцевих результатів/Deliverable timeline Gant chart"]
["Робоче завдання Результату №2 з ToR/deliverable #2 work item from ToR","Запропоновані роботи вендора, базуючисть на запиті ToR/Vendor's proposal work based on ToR request","Відповідальний за виконання/ Accountable for delivery","Оцінка трудовитрат в годинах/LoE in hrs","Оцінка трудовитрат в грн/LoE in hrn","Week 1",{"$nulls":6},"Week 2",{"$nulls":6},"Week 3",{"$nulls":6},"Week 4",{"$nulls":6},"Week 5",{"$nulls":6},"Week 6",{"$nulls":6},"Week 7",{"$nulls":6},"Week 8"]
["Типи робіт  Результату №2/Deliverable #2 work type"]
[null,"Тип робіт 1","Консультант 1",null,{"$f":"D19*B8","v":0}]
[null,"Тип робіт 2","Консультант 2",null,{"$f":"D20*B9","v":0}]
[null,"Тип робіт 3","Консультант 3",null,0]
[null,"Тип робіт 4","Консультант 4",null,0]
[null,"Тип робіт 5","Консультант 5",null,{"$f":"D23*B12","v":0}]
[null,"Тип робіт 6","Консультант 6",null,{"$f":"D24*B13","v":0}]
["СУМА/TOTAL:",null,null,{"$f":"SUM(D19:D24)","v":0},{"$f":"SUM(E19:E24)","v":0}]
["Типи робіт  Результату №2/Deliverable #2 work type"]
[null,"Тип робіт 1","Консультант 1",null,{"$f":"D27*B8","v":0}]
[null,"Тип робіт 2","Консультант 2",null,{"$f":"D28*B9","v":0}]
[null,"Тип робіт 3","Консультант 3",null,0]
[null,"Тип робіт 4","Консультант 4",null,0]
[null,"Тип робіт 5","Консультант 5",null,{"$f":"D31*B12","v":0}]
["СУМА/TOTAL:",null,null,{"$f":"SUM(D27:D31)","v":0},{"$f":"SUM(E27:E31)","v":0}]
["Типи робіт  Результату №2/Deliverable #2 work type"]
[null,"Тип робіт 1","Консультант 1",null,{"$f":"D34*B8","v":0}]
[null,"Тип робіт 2","Консультант 2",null,{"$f":"D35*B9","v":0}]
[null,"Тип робіт 3","Консультант 3",null,0]
[null,"Тип робіт 4","Консультант 4",null,0]
[null,"Тип робіт 5","Консультант 5",null,{"$f":"D38*B12","v":0}]
["СУМА/TOTAL:",null,null,{"$f":"SUM(D34:D38)","v":0},{"$f":"SUM(E34:E38)","v":0}]

{"sheet":"Deliverable 4","index":6,"n_rows":39,"n_cols":55,"rows_kept":39,"merged":[[0,0,0,3],[0,4,4,68],[1,1,1,3],[2,1,2,3],[3,1,3,3],[4,1,4,3],[5,0,5,3],[5,4,5,22],[5,23,14,68],[6,4,6,12],[6,13,6,18],[6,19,6,22],[7,4,7,12],[7,13,7,18],[7,19,7,22],[8,4,8,12],[8,13,8,18],[8,19,8,22],[9,4,9,12],[9,13,9,18],[9,19,9,22],[10,4,10,12],[10,13,10,18],[10,19,10,22],[11,4,11,12],[11,13,11,18],[11,19,11,22],[12,4,12,12],[12,13,12,18],[12,19,12,22],[13,0,13,1],[13,4,13,12],[13,13,13,18],[13,19,13,22],[14,0,14,4],[14,5,14,22],[15,0,15,4],[15,5,15,60],[16,5,16,11],[16,12,16,16],[16,19,16,24],[16,26,16,31],[16,33,16,39],[16,40,16,45],[16,47,16,53],[16,54,16,60],[17,0,23,0],[24,0,24,2],[25,0,30,0],[25,1,25,4],[31,0,31,2],[32,0,37,0],[32,1,32,4],[38,0,38,2],[39,5,55,68]]}
["Загальна інформація "]
["Назва організації/Organization name","НАЗВА/NAME"]
["Тривалість, днів/Duration, days",{"$f":"SUM(D25+D32+D39)/8","v":0}]
["Бюджет Результату №4/Budget Deliverable #4",{"$f":"D14","v":0}]
["Вартість роботи на день, грн/Cost per day",{"$f":"B4/B3","v":{"$error":"#DIV/0!"}}]
["Розрахунок вартості Результату №2 в цілому/General deliverable #2 cost calculation ",{"$nulls":3},"Розрахунок вартості Результату №2 по типам робіт/General deliverable #2 cost per work type "]
["Склад команди/Team Roster","Годинна ставка, грн/Hourly Rate, hrn","Сумарна оцінка трудовитрат, години/\nLoE summary, hrs","Сумарна оцінка трудовитрат, гривні/\nLoE summary, hrn","Тип роботи/Work type",{"$nulls":8},"Загальна кількість годин/Overall hours spent",{"$nulls":5},"Загальна Вартість/Overall Cost"]
["Консультант 1",null,{"$f":"D19+D26+D34","v":0},{"$f":"E19+E27+E34","v":0},"Тип робіт 1",{"$nulls":8},{"$f":"D25","v":0},{"$nulls":5},{"$f":"E25","v":0}]
["Консультант 2",null,{"$f":"D20+D28+D35","v":0},{"$f":"E20+E28+E35","v":0},"Тип робіт 2",{"$nulls":8},{"$f":"D32","v":0},{"$nulls":5},{"$f":"E32","v":0}]
["Консультант 3",null,{"$f":"D21+D29+D36","v":0},{"$f":"E21+E29+E36","v":0},"Тип робіт 3",{"$nulls":8},{"$f":"D39","v":0},{"$nulls":5},{"$f":"E39","v":0}]
["Консультант 4",null,{"$f":"D22+D30+D37","v":0},{"$f":"E22+E30+E37","v":0},"Тип робіт 4",{"$nulls":8},"за аналогією",{"$nulls":5},"за аналогією"]
["Консультант 5",null,{"$f":"D23+D31+D38","v":0},{"$f":"E23+E31+E38","v":0},"Тип робіт 5",{"$nulls":8},"за аналогією",{"$nulls":5},"за аналогією"]
["Консультант 6",null,{"$f":"D24","v":0},{"$f":"E24","v":0},"Тип робіт 6",{"$nulls":8},"за аналогією",{"$nulls":5},"за аналогією"]
["СУМА/TOTAL:",null,{"$f":"SUM(C8:C13)","v":0},{"$f":"SUM(D8:D13)","v":0},"СУМА/TOTAL:",{"$nulls":8},{"$f":"SUM(N8:N13)","v":0},{"$nulls":5},{"$f":"SUM(T8:T13)","v":0}]
[]
["Визначення обсягу робіт для Результату №2/Deliverable #2 scoping",{"$nulls":4},"Діаграма Ґанта для визначення строків виконання кінцевих результатів/Deliverable timeline Gant chart"]
["Робоче завдання Результату №2 з ToR/deliverable #2 work item from ToR","Запропоновані роботи вендора, базуючисть на запиті ToR/Vendor's proposal work based on ToR request","Відповідальний за виконання/ Accountable for delivery","Оцінка трудовитрат в годинах/LoE in hrs","Оцінка трудовитрат в грн/LoE in hrn","Week 1",{"$nulls":6},"Week 2",{"$nulls":6},"Week 3",{"$nulls":6},"Week 4",{"$nulls":6},"Week 5",{"$nulls":6},"Week 6",{"$nulls":6},"Week 7",{"$nulls":6},"Week 8"]
["Типи робіт  Результату №2/Deliverable #2 work type"]
[null,"Тип робіт 1","Консультант 1",null,{"$f":"D19*B8","v":0}]
[null,"Тип робіт 2","Консультант 2",null,{"$f":"D20*B9","v":0}]
[null,"Тип робіт 3","Консультант 3",null,0]
[null,"Тип робіт 4","Консультант 4",null,0]
[null,"Тип робіт 5","Консультант 5",null,0]
[null,"Тип робіт 6","Консультант 6",null,0]
["СУМА/TOTAL:",null,null,{"$f":"SUM(D19:D24)","v":0},{"$f":"SUM(E19:E24)","v":0}]
["Типи робіт  Результату №2/Deliverable #2 work type"]
[null,"Тип робіт 1","Консультант 1",null,{"$f":"D27*B8","v":0}]
[null,"Тип робіт 2","Консультант 2",null,{"$f":"D28*B9","v":0}]
[null,"Тип робіт 3","Консультант 3",null,0]
[null,"Тип робіт 4","Консультант 4",null,0]
[null,"Тип робіт 5","Консультант 5",null,0]
["СУМА/TOTAL:",null,null,{"$f":"SUM(D27:D31)","v":0},{"$f":"SUM(E27:E31)","v":0}]
["Типи робіт  Результату №2/Deliverable #2 work type"]
[null,"Тип робіт 1","Консультант 1",null,{"$f":"D34*B8","v":0}]
[null,"Тип робіт 2","Консультант 2",null,{"$f":"D35*B9","v":0}]
[null,"Тип робіт 3","Консультант 3",null,0]
[null,"Тип робіт 4","Консультант 4",null,0]
[null,"Тип робіт 5","Консультант 5",null,0]
["СУМА/TOTAL:",null,null,{"$f":"SUM(D34:D38)","v":0},{"$f":"SUM(E34:E38)","v":0}]